bitfinex-derivatives/quotes_SOLF0:USTF0_20260213
["timestamp","ask_amount","ask_price","bid_price","bid_amount"]
[1770941049677,5.88616884,78.494,78.431,6.21043154]
[1770941050179,11.4775,78.481,78.431,6.21043154]
[1770941051784,11.4759,78.492,78.441,6.21043154]
[1770941051979,5.88616884,78.511,78.46,8.24883209]
[1770941052180,5.88616884,78.511,78.461,6.21043154]
[1770941053887,11.4743,78.503,78.461,6.21043154]
[1770941054676,11.4756,78.494,78.45,8.24883209]
[1770941055279,5.88616884,78.493,78.45,8.24883209]
[1770941055485,5.88616884,78.49,78.441,6.21043154]
[1770941056987,11.4775,78.481,78.441,6.21043154]
[1770941057587,5.88616884,78.49,78.441,6.21043154]
[1770941058182,5.88616884,78.49,78.43,8.24883209]
[1770941058678,5.88616884,78.49,78.433,11.4844]
[1770941059384,5.88616884,78.484,78.43,8.24883209]
[1770941060486,11.4772,78.483,78.432,11.4846]
[1770941060695,5.88616884,78.482,78.432,11.4846]
[1770941060985,11.4777,78.48,78.432,11.4846]
[1770941061190,5.88616884,78.479,78.432,11.4846]
[1770941061786,5.88616884,78.471,78.395,6.21043154]
[1770941062591,5.88616884,78.459,78.405,17.69893154]
[1770941062796,5.88616884,78.459,78.405,6.21043154]
[1770941063089,5.88616884,78.44,78.391,11.4906]
[1770941063278,5.88616884,78.479,78.392,6.21043154]
[1770941064090,5.88616884,78.479,78.411,6.21043154]
[1770941065290,5.88616884,78.464,78.411,6.21043154]
[1770941066784,101.72,78.484,78.411,6.21043154]
[1770941066785,5.88616884,78.455,78.411,6.21043154]
[1770941066992,5.88616884,78.455,78.397,6.21043154]
[1770941068789,11.4816,78.453,78.397,6.21043154]
[1770941068991,11.4816,78.453,78.41,3.70080093]
[1770941070902,17.33324493,78.453,78.41,3.70080093]
[1770941072604,5.85164493,78.453,78.41,3.70080093]
[1770941072803,5.85164493,78.453,78.411,6.33619769]
[1770941074904,11.482,78.451,78.411,6.33619769]
[1770941075501,5.85164493,78.453,78.411,6.33619769]
[1770941076494,5.85164493,78.453,78.42,3.70080093]
[1770941076699,6.04236983,78.458,78.42,10.03699862]
[1770941077505,11.4811,78.456,78.42,6.33619769]
[1770941078014,17.52346983,78.456,78.412,11.4874]
[1770941078913,6.04236983,78.455,78.412,11.4874]
[1770941079907,6.04236983,78.455,78.412,17.82359769]
[1770941080110,9.16631146,78.483,78.388,101.76]
[1770941080111,3.70080093,78.48,78.431,6.33619769]
[1770941080313,6.04236983,78.487,78.44,10.03699862]
[1770941080510,6.04236983,78.487,78.45,3.70080093]
[1770941080815,6.04236983,78.503,78.453,6.33619769]
[1770941081009,6.04236983,78.5,78.46,3.70080093]
[1770941081210,6.04236983,78.5,78.453,6.33619769]
[1770941081408,6.04236983,78.5,78.46,3.70080093]
[1770941082211,6.04236983,78.513,78.47,3.70080093]
[1770941082810,6.04236983,78.513,78.48,3.70080093]
[1770941083011,11.4714,78.523,78.48,3.69450685]
[1770941083205,6.04236983,78.522,78.48,3.69450685]
[1770941084810,6.04236983,78.519,78.48,3.69450685]
[1770941085521,6.04236983,78.546,78.5,3.69450685]
[1770941086809,6.04236983,78.542,78.5,3.69450685]
[1770941087008,6.04236983,78.542,78.491,6.33619769]
[1770941087408,6.04236983,78.54,78.491,6.33619769]
[1770941088918,6.04236983,78.538,78.491,6.33619769]
[1770941089215,17.40867329,78.57,78.498,6.33619769]
[1770941089216,6.04236983,78.551,78.498,6.33619769]
[1770941090810,6.04236983,78.551,78.502,6.33619769]
[1770941091818,6.04236983,78.551,78.507,6.33619769]
[1770941092221,6.04236983,78.567,78.507,6.33619769]
[1770941092523,6.04236983,78.565,78.507,6.33619769]
[1770941093924,6.04236983,78.563,78.51,6.33619769]
[1770941095117,6.04236983,78.554,78.51,6.33619769]
[1770941095318,6.04236983,78.554,78.442,23.43360074]
[1770941095319,6.04236983,78.554,78.481,6.33619769]
[1770941096817,6.04236983,78.539,78.481,6.33619769]
[1770941097724,6.04236983,78.539,78.487,6.33619769]
[1770941099122,6.04236983,78.539,78.489,6.33619769]
[1770941100232,6.04236983,78.536,78.46,6.33619769]
[1770941100432,6.04236983,78.536,78.471,6.261104]
[1770941101022,6.09743124,78.549,78.471,6.261104]
[1770941101221,6.09743124,78.562,78.494,6.261104]
[1770941101730,6.09743124,78.589,78.511,6.261104]
[1770941101925,11.4657,78.562,78.511,6.261104]
[1770941102424,6.09743124,78.574,78.513,6.261104]
[1770941103231,6.09743124,78.57,78.515,6.261104]
[1770941103929,6.09743124,78.559,78.501,6.261104]
[1770941105133,8.24236183,78.6,78.455,201.5583]
[1770941105134,6.09743124,78.575,78.515,6.261104]
[1770941105837,6.09743124,78.589,78.538,6.261104]
[1770941106027,6.09743124,78.589,78.53,8.24236183]
[1770941106728,6.09743124,78.584,78.531,11.4701]
[1770941106936,6.09743124,78.584,78.54,3.68869599]
[1770941107832,6.09743124,78.581,78.54,3.68869599]
[1770941108425,6.09743124,78.579,78.53,3.68869599]
[1770941109333,6.09743124,78.568,78.53,3.68869599]
[1770941110332,6.09743124,78.568,78.453,15.41286554]
[1770941110333,6.09743124,78.559,78.5,3.68869599]
[1770941111728,6.09743124,78.555,78.51,3.68869599]
[1770941111932,6.09743124,78.555,78.5,3.68869599]
[1770941112128,3.68869599,78.55,78.5,3.68869599]
[1770941112431,6.09743124,78.549,78.5,3.68869599]
[1770941113034,6.09743124,78.547,78.5,3.68869599]
[1770941113636,6.09743124,78.542,78.49,3.68869599]
[1770941113833,6.09743124,78.539,78.478,6.261104]
[1770941114135,101.64,78.569,78.5,3.68869599]
[1770941114136,9.78612723,78.55,78.5,3.68869599]
[1770941114437,6.09743124,78.55,78.5,3.68869599]
[1770941115340,6.09743124,78.55,78.501,11.4745]
[1770941115733,6.09743124,78.55,78.502,6.261104]
[1770941116231,6.09743124,78.55,78.454,38.27]
[1770941116232,3.68869599,78.53,78.478,6.261104]
[1770941116435,14.68,78.554,78.427,22.9707]
[1770941116436,6.09743124,78.529,78.48,9.94979999]
[1770941116630,6.09743124,78.529,78.48,3.68869599]
[1770941116839,6.09743124,78.519,78.47,3.68869599]
[1770941117340,14.68,78.554,78.48,3.68869599]
[1770941117341,17.56793124,78.529,78.48,3.68869599]
[1770941117541,6.09743124,78.528,78.48,3.68869599]
[1770941118239,6.09743124,78.525,78.481,11.4774]
[1770941119041,6.09743124,78.519,78.471,6.261104]
[1770941119543,6.09743124,78.518,78.471,6.261104]
[1770941120537,3.68869599,78.53,78.48,3.68869599]
[1770941120831,11.4705,78.529,78.48,3.68869599]
[1770941121035,11.4705,78.529,78.481,6.261104]
[1770941121845,11.4717,78.521,78.481,6.261104]
[1770941125639,6.09743124,78.529,78.481,6.261104]
[1770941128756,6.09743124,78.543,78.5,9.94979999]
[1770941128951,14.68,78.554,78.52,3.68869599]
[1770941129141,14.68,78.554,78.53,3.68869599]
[1770941129537,14.68,78.554,78.531,6.261104]
[1770941129742,11.4619,78.588,78.531,6.261104]
[1770941129743,7.15281305,78.587,78.54,3.68869599]
[1770941130053,7.15281305,78.587,78.55,3.68869599]
[1770941130643,7.15281305,78.617,78.57,3.68869599]
[1770941130849,7.15281305,78.617,78.555,11.4666]
[1770941131746,7.1956161,78.606,78.545,11.468]
[1770941132649,7.1956161,78.603,78.554,11.4667]
[1770941133648,7.1956161,78.603,78.566,11.465]
[1770941133850,7.20044652,78.639,78.566,11.465]
[1770941134442,7.20044652,78.625,78.575,11.4636]
[1770941137554,8.22771097,78.64,78.57,8.22771097]
[1770941137555,7.21770816,78.64,78.57,8.22771097]
[1770941138561,7.21770816,78.64,78.58,11.4629]
[1770941139060,7.22133946,78.654,78.6,11.46]
[1770941139463,7.22133946,78.654,78.61,8.22771097]
[1770941143052,7.22133946,78.654,78.6,11.46]
[1770941143053,7.22133946,78.654,78.6,19.68771097]
[1770941143661,7.23283708,78.682,78.62,8.22771097]
[1770941143856,7.23283708,78.682,78.64,8.22771097]
[1770941144057,7.23283708,78.682,78.61,8.22771097]
[1770941144359,7.23283708,78.679,78.6,8.22771097]
[1770941144959,7.23301183,78.663,78.6,19.67743512]
[1770941145757,7.23301183,78.663,78.608,11.4588]
[1770941146066,7.23301183,78.663,78.6,8.21753512]
[1770941146567,7.23301183,78.663,78.598,101.56]
[1770941146568,7.24730731,78.689,78.62,8.21753512]
[1770941147869,7.28233356,78.664,78.6,8.21753512]
[1770941148556,11.451,78.663,78.611,11.4584]
[1770941148759,18.73352246,78.663,78.611,11.4584]
[1770941149156,18.73352246,78.663,78.6,8.21753512]
[1770941149157,18.73352246,78.663,78.601,11.4599]
[1770941149371,18.73352246,78.663,78.6,8.21753512]
[1770941149372,7.28252246,78.663,78.6,8.21753512]
[1770941150763,11.4522,78.654,78.6,8.21753512]
[1770941151366,7.26676526,78.653,78.6,8.21753512]
[1770941151765,7.26676526,78.653,78.601,11.4599]
[1770941152167,11.451,78.663,78.601,11.4599]
[1770941152565,11.451,78.663,78.609,11.4587]
[1770941152765,7.27532473,78.667,78.6,8.21753512]
[1770941153069,7.27532473,78.667,78.63,3.68041533]
[1770941153569,11.4506,78.666,78.63,3.68041533]
[1770941153875,7.27550183,78.665,78.62,3.68041533]
[1770941154170,7.28017456,78.656,78.62,3.68041533]
[1770941154369,7.28017456,78.656,78.61,3.68041533]
[1770941155066,7.28034955,78.649,78.61,3.68041533]
[1770941155569,101.54,78.697,78.6,3.68041533]
[1770941155570,3.68041533,78.64,78.6,3.68041533]
[1770941155761,7.34260518,78.639,78.6,3.68041533]
[1770941156769,7.34260518,78.639,78.61,3.68041533]
[1770941158370,7.36952523,78.658,78.62,3.68041533]
[1770941158774,7.36972871,78.652,78.61,3.68041533]
[1770941161977,7.36972871,78.652,78.62,3.68041533]
[1770941163072,7.36972871,78.652,78.611,11.4584]
[1770941163268,7.36972871,78.652,78.61,3.68041533]
[1770941164082,7.37497752,78.643,78.6,3.68041533]
[1770941164879,11.4541,78.641,78.6,3.68041533]
[1770941165180,7.37497752,78.643,78.61,3.68041533]
[1770941165382,7.3751656,78.659,78.61,3.68041533]
[1770941166877,7.33204087,78.648,78.61,3.68041533]
[1770941167779,11.011316,78.66,78.61,3.68041533]
[1770941167982,7.33090067,78.659,78.61,3.68041533]
[1770941168170,11.4531,78.648,78.61,3.68041533]
[1770941168373,7.33090067,78.659,78.62,3.68041533]
[1770941168970,11.4529,78.65,78.62,3.68041533]
[1770941169173,7.33090067,78.659,78.62,3.68041533]
[1770941170378,7.33090067,78.659,78.588,101.52]
[1770941170379,7.33090067,78.659,78.63,3.68041533]
[1770941170582,7.1904849,78.679,78.63,3.68041533]
[1770941170983,11.4509,78.663,78.63,3.68041533]
[1770941172273,11.4493,78.675,78.64,3.68041533]
[1770941173078,11.4478,78.684,78.65,3.68041533]
[1770941173480,7.20123788,78.669,78.622,11.4568]
[1770941173679,7.20123788,78.661,78.62,3.68041533]
[1770941174079,7.19978559,78.659,78.61,3.68041533]
[1770941175074,7.19978559,78.659,78.603,11.4596]
[1770941175075,7.19978559,78.659,78.62,3.68041533]
[1770941175680,7.19978559,78.659,78.603,11.4596]
[1770941175681,7.19978559,78.659,78.61,3.68041533]
[1770941175885,7.19670442,78.655,78.61,3.68041533]
[1770941176375,7.19670442,78.642,78.6,3.68041533]
[1770941177782,11.4542,78.641,78.6,3.68041533]
[1770941177985,7.19670442,78.642,78.61,3.68041533]
[1770941178486,7.19670442,78.642,78.6,3.68041533]
[1770941178891,7.19670442,78.642,78.61,3.68041533]
[1770941179187,7.25685406,78.657,78.62,3.68041533]
[1770941179681,7.25685406,78.657,78.61,3.68041533]
[1770941180282,7.34403997,78.648,78.61,3.68041533]
[1770941181191,7.34418623,78.64,78.6,3.68041533]
[1770941181791,11.4526,78.652,78.61,3.68041533]
[1770941181987,7.4021102,78.651,78.61,3.68041533]
[1770941183187,7.4021102,78.651,78.611,11.4584]
[1770941183883,7.4021102,78.651,78.61,3.68041533]
[1770941184095,101.52,78.678,78.576,15.29712697]
[1770941184096,7.6102769,78.649,78.576,15.29712697]
[1770941184390,7.6102769,78.639,78.59,3.68041533]
[1770941184582,7.6102769,78.639,78.6,3.68041533]
[1770941184781,7.61049478,78.636,78.564,15.29712697]
[1770941184995,7.61049478,78.619,78.57,3.68041533]
[1770941186791,7.61049478,78.619,78.58,3.68041533]
[1770941187392,7.61049478,78.619,78.582,11.4626]
[1770941187593,7.61049478,78.619,78.57,3.68041533]
[1770941187988,7.61049478,78.619,78.58,3.68041533]
[1770941188996,19.06789478,78.619,78.58,3.68041533]
[1770941189197,7.61049478,78.619,78.58,3.68041533]
[1770941189591,7.78154229,78.633,78.59,3.68041533]
[1770941190190,7.78154229,78.633,78.547,38.27]
[1770941190191,7.78154229,78.633,78.6,3.68041533]
[1770941190889,7.78154229,78.633,78.568,101.54]
[1770941190890,7.75662433,78.648,78.61,3.68041533]
[1770941191088,3.68041533,78.66,78.61,3.68041533]
[1770941191292,7.75662433,78.662,78.562,22.931]
[1770941191293,7.75662433,78.662,78.62,3.68041533]
[1770941192201,19.23793819,78.658,78.61,3.68041533]
[1770941192391,7.78633819,78.657,78.61,3.68041533]
[1770941192899,7.78657905,78.656,78.61,3.68041533]
[1770941194794,11.76820989,78.677,78.6,3.68041533]
[1770941194795,3.68041533,78.65,78.6,3.68041533]
[1770941194994,7.80962693,78.639,78.6,3.68041533]
[1770941195298,7.80962693,78.639,78.59,3.68041533]
[1770941195896,7.7762364,78.626,78.58,3.68041533]
[1770941196689,7.7764625,78.623,78.58,3.68041533]
[1770941198899,7.7764625,78.623,78.575,11.4637]
[1770941199095,7.7764625,78.623,78.582,11.4626]
[1770941200004,7.7764625,78.623,78.574,11.4638]
[1770941201408,7.7764625,78.623,78.581,11.4628]
[1770941201601,11.4554,78.632,78.556,101.54]
[1770941201602,7.93392746,78.639,78.58,8.22595483]
[1770941202803,11.4546,78.638,78.588,11.4618]
[1770941203303,7.93684489,78.637,78.58,8.22595483]
[1770941203494,7.93684489,78.636,78.587,11.4618]
[1770941203806,7.93684489,78.636,78.56,8.22595483]
[1770941204608,7.967903,78.613,78.568,11.4647]
[1770941204802,7.967903,78.613,78.56,8.22595483]
[1770941205002,7.967903,78.613,78.55,8.22900389]
[1770941205506,7.967903,78.613,78.559,11.466]
[1770941205901,7.967903,78.613,78.55,8.22900389]
[1770941206299,11.4597,78.603,78.551,11.4671]
[1770941206801,7.85532895,78.602,78.551,11.4671]
[1770941207007,7.85532895,78.602,78.475,12.74]
[1770941207008,7.85532895,78.597,78.537,11.4692]
[1770941207708,7.85532895,78.596,78.537,11.4692]
[1770941207906,7.85532895,78.596,78.53,8.22900389]
[1770941208808,7.85300723,78.594,78.536,11.4693]
[1770941209605,7.85300723,78.592,78.536,11.4693]
[1770941209911,7.85300723,78.592,78.53,8.22900389]
[1770941210612,7.95950303,78.58,78.52,8.22900389]
[1770941211318,7.9597444,78.577,78.52,8.22900389]
[1770941212211,7.96933128,78.572,78.52,8.22900389]
[1770941213210,7.9695716,78.589,78.52,8.22900389]
[1770941213714,7.96846192,78.578,78.53,11.4702]
[1770941213911,7.96846192,78.592,78.53,11.4702]
[1770941214514,11.4627,78.583,78.53,11.4702]
[1770941215809,7.97080307,78.578,78.53,11.4702]
[1770941217410,7.97102325,78.576,78.522,11.4714]
[1770941217815,7.97102325,78.576,78.52,8.22900389]
[1770941218210,7.97092371,78.567,78.52,8.22900389]
[1770941219221,7.97092371,78.567,78.468,46.39230074]
[1770941219222,7.97113751,78.554,78.49,8.22900389]
[1770941220018,7.95439749,78.549,78.5,11.4746]
[1770941220719,7.95477451,78.545,78.498,11.4749]
[1770941221625,13.33,78.553,78.49,8.22900389]
[1770941221626,7.95477451,78.541,78.49,11.4761]
[1770941222620,7.95477451,78.541,78.497,11.475]
[1770941223811,7.95477451,78.541,78.489,11.4762]
[1770941224213,13.33,78.553,78.49,8.22900389]
[1770941224414,13.33,78.553,78.51,8.22900389]
[1770941224617,7.85214933,78.547,78.49,8.22900389]
[1770941225217,7.85214933,78.547,78.474,101.62]
[1770941225417,13.33,78.553,78.495,11.4753]
[1770941225418,7.85214933,78.545,78.495,11.4753]
[1770941226124,7.85214933,78.545,78.503,11.4741]
[1770941226918,13.33,78.553,78.514,11.4725]
[1770941227521,13.33,78.553,78.51,8.22900389]
[1770941229626,7.85595797,78.552,78.498,11.4749]
[1770941230722,19.32315797,78.552,78.505,11.4739]
[1770941231318,7.85595797,78.552,78.512,11.4728]
[1770941232024,7.85595797,78.552,78.49,8.22900389]
[1770941233728,7.85595797,78.552,78.509,11.4732]
[1770941233914,7.85595797,78.552,78.49,8.22900389]
[1770941234115,7.85595797,78.552,78.456,38.27]
[1770941234116,13.33,78.553,78.51,8.22900389]
[1770941235026,13.33,78.553,78.514,11.4725]
[1770941235429,13.33,78.553,78.51,8.22900389]
[1770941236932,13.33,78.553,78.52,11.4716]
[1770941237928,21.17981214,78.553,78.512,11.4728]
[1770941238229,7.84981214,78.552,78.512,11.4728]
[1770941242431,7.84981214,78.552,78.52,3.69139172]
[1770941242624,13.33,78.553,78.49,101.64]
[1770941242832,13.33,78.553,78.48,22.9552]
[1770941242833,13.33,78.553,78.52,3.69139172]
[1770941243031,7.83657256,78.552,78.51,15.16449172]
[1770941243637,7.83657256,78.552,78.52,3.69139172]
[1770941244334,13.33,78.553,78.52,3.69139172]
[1770941244535,13.33,78.553,78.486,101.64]
[1770941244536,13.33,78.553,78.53,3.69139172]
[1770941245738,13.33,78.553,78.52,3.69139172]
[1770941246739,13.33,78.553,78.522,11.4714]
[1770941247545,7.7894245,78.552,78.5,101.64]
[1770941247748,7.7894245,78.549,78.5,3.69139172]
[1770941248248,7.7894245,78.549,78.49,3.69139172]
[1770941248450,7.79464523,78.539,78.48,3.69139172]
[1770941248856,7.79464523,78.539,78.493,11.4756]
[1770941249358,7.79464523,78.539,78.5,3.69139172]
[1770941250348,13.33,78.553,78.51,3.69139172]
[1770941250553,21.0865372,78.553,78.51,3.69139172]
[1770941250755,7.75638075,78.552,78.51,3.69139172]
[1770941251061,7.75638075,78.552,78.503,11.4742]
[1770941251062,3.69139172,78.55,78.503,11.4742]
[1770941251261,7.75638075,78.549,78.503,11.4742]
[1770941252165,3.69139172,78.54,78.495,11.4753]
[1770941252355,7.76430897,78.539,78.495,11.4753]
[1770941252660,7.76430897,78.539,78.5,3.69139172]
[1770941254960,7.76559879,78.536,78.495,11.4753]
[1770941256159,7.76559879,78.536,78.5,3.69139172]
[1770941259359,7.76559879,78.536,78.457,23.43360074]
[1770941259360,7.76917303,78.535,78.469,15.29712697]
[1770941259563,7.76917303,78.535,78.49,3.69139172]
[1770941259761,11.78657223,78.554,78.464,101.66]
[1770941259762,7.75805722,78.529,78.48,3.69139172]
[1770941259966,7.75805722,78.513,78.47,3.69139172]
[1770941260164,7.75805722,78.513,78.46,3.69139172]
[1770941260463,7.75805722,78.508,78.46,15.17189172]
[1770941260966,7.75816153,78.497,78.47,3.69139172]
[1770941261263,7.75816153,78.497,78.45,3.69139172]
[1770941261859,7.87146574,78.485,78.44,3.69139172]
[1770941262360,7.87146574,78.485,78.45,3.69139172]
[1770941262666,7.87146574,78.498,78.46,3.69139172]
[1770941263563,7.87159032,78.489,78.45,3.69139172]
[1770941264065,7.87159032,78.489,78.44,3.69139172]
[1770941264857,7.9019543,78.483,78.44,3.69139172]
[1770941265058,7.9019543,78.483,78.45,3.69139172]
[1770941265765,19.44,78.512,78.43,3.69139172]
[1770941265766,7.88973707,78.479,78.43,3.69139172]
[1770941265968,7.88973707,78.469,78.42,3.69139172]
[1770941266359,7.88973707,78.469,78.43,3.69139172]
[1770941266680,7.88973707,78.469,78.355,31.33204694]
[1770941266681,7.88973707,78.459,78.391,101.68]
[1770941266860,7.88973707,78.459,78.41,3.70069141]
[1770941267369,7.8898599,78.457,78.41,3.70069141]
[1770941268761,7.86967679,78.455,78.41,3.70069141]
[1770941268966,7.86967679,78.455,78.391,101.68]
[1770941268967,7.86967679,78.469,78.43,3.70069141]
[1770941269768,7.87545444,78.484,78.45,3.70069141]
[1770941269967,7.87545444,78.484,78.417,101.7]
[1770941270269,7.87545444,78.484,78.391,15.29712697]
[1770941270270,7.87545444,78.449,78.4,3.70069141]
[1770941270464,11.78657223,78.503,78.352,22.9925]
[1770941270465,7.87545444,78.465,78.43,3.70069141]
[1770941270665,7.87545444,78.482,78.44,3.70069141]
[1770941271068,7.87556101,78.478,78.44,3.70069141]
[1770941271566,7.87556101,78.478,78.43,3.70069141]
[1770941272069,11.4795,78.468,78.42,3.70069141]
[1770941272366,7.87556101,78.478,78.42,3.70069141]
[1770941273859,7.63252683,78.477,78.42,3.70069141]
[1770941274672,7.63252683,78.477,78.43,3.70069141]
[1770941275073,3.70069141,78.47,78.42,3.70069141]
[1770941275273,7.63260143,78.469,78.42,3.70069141]
[1770941275575,178.4411,78.524,78.4,3.70069141]
[1770941275576,7.63260143,78.459,78.4,3.70069141]
[1770941276773,11.40436934,78.45,78.4,3.70069141]
[1770941277161,7.70367793,78.449,78.4,3.70069141]
[1770941277763,7.70367793,78.449,78.401,11.4891]
[1770941277971,7.73034503,78.463,78.41,3.70069141]
[1770941278570,7.73034503,78.463,78.42,3.70069141]
[1770941279272,22.9468,78.509,78.384,2.21894906]
[1770941279273,19.20822601,78.479,78.43,3.70069141]
[1770941279473,7.73042601,78.479,78.44,3.70069141]
[1770941280270,7.73105617,78.494,78.45,3.70069141]
[1770941280573,19.20705617,78.492,78.44,3.70069141]
[1770941280773,7.73105617,78.491,78.44,3.70069141]
[1770941281076,7.73105617,78.491,78.43,8.25380065]
[1770941281478,7.731353,78.487,78.43,19.73860065]
[1770941282970,12.27,78.486,78.438,11.4836]
[1770941283878,12.27,78.486,78.45,8.25380065]
[1770941284174,12.27,78.486,78.43,8.25380065]
[1770941285276,7.63342059,78.485,78.437,11.4838]
[1770941287582,7.63342059,78.485,78.389,178.7482]
[1770941287583,7.65843764,78.483,78.429,11.485]
[1770941287778,7.65843764,78.483,78.4,8.25380065]
[1770941288470,7.65593412,78.467,78.413,11.4873]
[1770941288875,7.65593412,78.467,78.4,8.25380065]
[1770941289278,7.65600287,78.465,78.4,8.25380065]
[1770941289674,7.65600287,78.454,78.4,11.4892]
[1770941291282,7.65600287,78.454,78.4,8.25380065]
[1770941292780,7.65600287,78.454,78.406,11.4884]
[1770941295078,7.65600287,78.454,78.413,11.4873]
[1770941295277,7.82450421,78.453,78.4,8.25380065]
[1770941295485,7.82450421,78.453,78.404,11.4886]
[1770941297274,7.82028236,78.445,78.394,11.4901]
[1770941297780,7.82028236,78.442,78.392,11.4904]
[1770941298679,7.82028236,78.442,78.4,11.4892]
[1770941299483,7.8298115,78.441,78.389,11.4909]
[1770941300380,7.83134349,78.438,78.389,11.4909]
[1770941300880,7.83134349,78.438,78.39,3.70269665]
[1770941301683,7.83134349,78.438,78.4,3.70269665]
[1770941301885,11.4836,78.439,78.4,3.70269665]
[1770941302683,19.31571953,78.439,78.4,3.70269665]
[1770941302987,7.83211953,78.438,78.4,3.70269665]
[1770941303292,11.4841,78.436,78.391,11.4906]
[1770941303483,7.83211953,78.419,78.37,3.70269665]
[1770941304883,7.83211953,78.419,78.372,11.4933]
[1770941306283,7.97570931,78.417,78.37,3.70269665]
[1770941306492,7.97570931,78.409,78.36,3.70269665]
[1770941306990,11.4883,78.407,78.37,3.70269665]
[1770941307179,7.97578668,78.406,78.36,3.70269665]
[1770941307785,7.97578668,78.406,78.36,15.19789665]
[1770941309085,7.95865378,78.422,78.373,11.4932]
[1770941309291,7.95865378,78.422,78.38,3.70269665]
[1770941309787,7.95935265,78.419,78.373,11.4932]
[1770941310093,7.95935265,78.419,78.384,11.4916]
[1770941313990,7.95935265,78.419,78.38,3.70269665]
[1770941315895,7.96956445,78.429,78.381,11.4921]
[1770941317793,7.96847685,78.427,78.381,11.4921]
[1770941318495,7.96847685,78.422,78.38,3.70269665]
[1770941319797,7.96847685,78.422,78.38,15.19489665]
[1770941321197,7.96847685,78.422,78.386,11.4912]
[1770941322701,7.96847685,78.422,78.38,3.70269665]
[1770941322900,15.18909665,78.42,78.379,11.4923]
[1770941323199,7.96847685,78.422,78.38,3.70269665]
[1770941324802,7.96847685,78.422,78.386,11.4913]
[1770941325191,7.94924433,78.436,78.4,3.70269665]
[1770941325395,7.94924433,78.449,78.41,3.70269665]
[1770941325590,11.4829,78.445,78.41,3.70269665]
[1770941326696,11.4829,78.445,78.4,3.70269665]
[1770941326894,11.4829,78.445,78.4,3.70181179]
[1770941327397,11.4829,78.445,78.407,11.4882]
[1770941327998,11.4829,78.445,78.41,3.70181179]
[1770941329296,7.94924433,78.449,78.41,3.70181179]
[1770941330706,11.4824,78.448,78.4,3.70181179]
[1770941331198,11.4824,78.448,78.41,3.70181179]
[1770941331706,11.4824,78.448,78.404,11.4887]
[1770941332809,7.94924433,78.449,78.404,11.4887]
[1770941338110,7.94924433,78.449,78.41,3.70181179]
[1770941338409,7.83673589,78.459,78.41,3.70181179]
[1770941339810,7.83673589,78.459,78.417,11.4867]
[1770941340112,7.86963398,78.457,78.41,3.70181179]
[1770941340609,7.86963398,78.457,78.413,11.4873]
[1770941341606,7.86978369,78.469,78.387,101.8]
[1770941341912,15.80996633,78.486,78.387,101.8]
[1770941341913,7.84510279,78.479,78.43,3.70181179]
[1770941342213,7.84510279,78.479,78.42,3.70181179]
[1770941342407,7.84510279,78.479,78.433,11.4844]
[1770941342607,7.84510279,78.479,78.43,3.70181179]
[1770941343007,7.84510279,78.479,78.44,3.70181179]
[1770941343212,11.4761,78.491,78.44,3.70181179]
[1770941343406,7.84514851,78.479,78.42,3.70181179]
[1770941343611,7.84514851,78.469,78.424,11.4858]
[1770941344312,7.82552485,78.459,78.4,3.70181179]
[1770941344618,7.82552485,78.449,78.4,3.70181179]
[1770941346818,7.82552485,78.449,78.412,11.4875]
[1770941347211,7.82552485,78.449,78.4,3.70181179]
[1770941347816,7.79964719,78.446,78.399,11.4894]
[1770941348720,3.70181179,78.45,78.399,11.4894]
[1770941348721,7.79968705,78.444,78.399,11.4894]
[1770941349719,3.70181179,78.44,78.399,11.4894]
[1770941350121,11.48024119,78.44,78.399,11.4894]
[1770941350317,7.7784294,78.44,78.4,3.70181179]
[1770941351718,7.7784294,78.44,78.405,11.4884]
[1770941354114,7.81851074,78.464,78.42,3.70181179]
[1770941354617,7.81851074,78.464,78.41,3.70181179]
[1770941355122,7.81854474,78.456,78.41,15.18951179]
[1770941357428,7.86464043,78.449,78.402,11.4889]
[1770941358727,7.84961647,78.447,78.402,11.4889]
[1770941360019,3.70181179,78.44,78.395,11.49]
[1770941360222,11.53874485,78.44,78.395,11.49]
[1770941360619,7.83693306,78.44,78.395,11.49]
[1770941360819,7.83693306,78.44,78.4,3.70181179]
[1770941361022,7.83693306,78.44,78.395,11.49]
[1770941361933,7.81815225,78.449,78.4,3.70181179]
[1770941362933,11.4828,78.445,78.4,15.19101179]
[1770941364629,19.24840147,78.445,78.4,15.19101179]
[1770941366630,7.76590698,78.444,78.4,15.19101179]
[1770941366830,7.76590698,78.442,78.4,11.4892]
[1770941367038,7.76593353,78.439,78.4,11.4892]
[1770941368739,7.76593353,78.439,78.4,15.19101179]